fUSD/lending_fUSD_20240423
["ID","MTS","AMOUNT","RATE_DAILY","PERIOD"]
[323297074,1713879065212,-630.36,0.00012999,2]
[323297075,1713879065221,-630.36,0.00012999,2]
[323297076,1713879065231,-630.36,0.00012999,2]
[323297077,1713879065241,-630.36,0.00012999,2]
[323297078,1713879065250,-630.36,0.00012999,2]
[323297079,1713879065260,-630.36,0.00012999,2]
[323297080,1713879065269,-630.36,0.00012999,2]
[323297081,1713879065278,-630.36,0.00012999,2]
[323297082,1713879065288,-630.36,0.00012999,2]
[323297083,1713879065298,-630.36,0.00012999,2]
[323297084,1713879065308,-630.39342219,0.00012999,2]
[323297085,1713879065318,-1935.01324844,0.00013,2]
[323297086,1713879065328,-3742317.08377106,0.00013,2]
[323297087,1713879065685,-134914.39670334,0.00013,2]
[323297088,1713879065697,-1554.63772401,0.00013,2]
[323297089,1713879066494,-500.0,0.00011469,2]
[323297090,1713879066504,-500.0,0.00011743,2]
[323297091,1713879066514,-335.94,0.00012017,2]
[323297092,1713879066524,-532657.65176794,0.00013,2]
[323297093,1713879066549,-1256.0,0.00011956,2]
[323297094,1713879066558,-12117.8004515,0.00013,2]
[323297095,1713879066573,-2833.98911033,0.00013,2]
[323297096,1713879066587,-2279.79820878,0.00013,2]
[323297097,1713879066599,-39393.5000664,0.00013,2]
[323297098,1713879066632,-8095.4174114,0.00013,2]
[323297099,1713879066644,-294.14994472,0.00013,2]
[323297100,1713879066655,-806.1100004,0.00013,2]
[323297101,1713879066667,-686.000002,0.00013,2]
[323297102,1713879066692,-284.83040661,0.00013,2]
[323297103,1713879066703,-293.30521316,0.00013,2]
[323297104,1713879066724,-2534.02923427,0.00013,2]
[323297105,1713879067548,-500.0,0.00011469,2]
[323297106,1713879067557,-311.34832108,0.00011743,2]
[323297107,1713879067569,-188.65167892,0.00011743,2]
[323297108,1713879067578,-154.32,0.00012017,2]
[323297109,1713879067591,-35.81936753,0.00013,2]
[323297110,1713879067612,-2872.84083283,0.00013,2]
[323297111,1713879067624,-297.20900393,0.00013,2]
[323297112,1713879067635,-5200.0,0.00013,2]
[323297113,1713879067646,-640.7472672,0.00013,2]
[323297114,1713879067661,-1288.38893741,0.00013,2]
[323297115,1713879067672,-275.919,0.00013,2]
[323297116,1713879067693,-1575.49999999,0.00013,2]
[323297117,1713879067705,-24880.3792854,0.00013,2]
[323297118,1713879067716,-11373.48400524,0.00013,2]
[323297119,1713879067953,-6038.64499808,0.00013,2]
[323297120,1713879067968,-1140.09727804,0.00013,2]
[323297121,1713879067979,-3696.03882751,0.00013,2]
[323297122,1713879068009,-750.52233814,0.00013,2]
[323297123,1713879195025,20083.08,0.00011177,2]
[323297124,1713879321441,173.72258374,0.00011151,2]
[323297125,1713879426292,160.87,0.0001113,2]
[323297126,1713879489986,-967.65652118,0.0001125,2]
[323297127,1713879490011,-250.0,0.00011251,2]
[323297128,1713879490035,-5959.9235,0.00011272,2]
[323297129,1713879490064,-1109.55,0.00011436,2]
[323297130,1713879490090,-500.0,0.00011469,2]
[323297131,1713879490114,-181.31,0.00011469,2]
[323297132,1713879490137,-240.11,0.00011469,2]
[323297133,1713879490162,-632.45288633,0.00011469,2]
[323297134,1713879490493,-500.0,0.00011469,2]
[323297135,1713879490521,-500.0,0.00011469,2]
[323297136,1713879490544,-500.0,0.00011469,2]
[323297137,1713879490567,-500.0,0.00011469,2]
[323297138,1713879490589,-500.0,0.00011469,2]
[323297139,1713879490613,-500.0,0.00011469,2]
[323297140,1713879490635,-500.0,0.00011469,2]
[323297141,1713879490657,-500.0,0.00011469,2]
[323297142,1713879490679,-724.58,0.00011469,2]
[323297143,1713879490704,-500.0,0.00011469,2]
[323297144,1713879490726,-500.0,0.00011469,2]
[323297145,1713879490749,-519.82,0.00011469,2]
[323297146,1713879490773,-500.0,0.00011469,2]
[323297147,1713879490796,-500.0,0.00011469,2]
[323297148,1713879490819,-500.0,0.00011469,2]
[323297149,1713879490842,-500.0,0.00011469,2]
[323297150,1713879490864,-500.0,0.00011469,2]
[323297151,1713879490887,-500.0,0.00011469,2]
[323297152,1713879490910,-500.0,0.00011469,2]
[323297153,1713879490958,-515.94,0.00011469,2]
[323297154,1713879490980,-4379.51,0.00011469,2]
[323297155,1713879491002,-500.0,0.00011469,2]
[323297156,1713879491025,-749.74,0.00011469,2]
[323297157,1713879491048,-500.0,0.00011469,2]
[323297158,1713879491071,-500.0,0.00011469,2]
[323297159,1713879491095,-564.76,0.00011469,2]
[323297160,1713879491118,-500.0,0.00011469,2]
[323297161,1713879491145,-500.0,0.00011469,2]
[323297162,1713879491169,-500.0,0.00011469,2]
[323297163,1713879491195,-500.0,0.00011469,2]
[323297164,1713879491220,-18373.19,0.00011469,2]
[323297165,1713879491244,-827.51,0.00011469,2]
[323297166,1713879491268,-500.0,0.00011469,2]
[323297167,1713879491293,-500.0,0.00011469,2]
[323297168,1713879491316,-1755.55,0.00011469,2]
[323297169,1713879491340,-1108.27,0.00011469,2]
[323297170,1713879491364,-500.0,0.00011469,2]
[323297171,1713879491388,-500.0,0.00011469,2]
[323297172,1713879491412,-500.0,0.00011469,2]
[323297173,1713879491437,-500.0,0.00011469,2]
[323297174,1713879491463,-500.0,0.00011469,2]
[323297175,1713879491487,-847.9,0.00011469,2]
[323297176,1713879491512,-500.0,0.00011469,2]
[323297177,1713879491536,-500.0,0.00011469,2]
[323297178,1713879491561,-500.0,0.00011469,2]
[323297179,1713879491584,-500.0,0.00011469,2]
[323297180,1713879491607,-500.0,0.00011469,2]
[323297181,1713879491631,-500.0,0.00011469,2]
[323297182,1713879491654,-500.0,0.00011469,2]
[323297183,1713879491679,-500.0,0.00011469,2]
[323297184,1713879491704,-756.24,0.00011469,2]
[323297185,1713879491728,-1421.81,0.00011469,2]
[323297186,1713879491753,-939.18,0.00011469,2]
[323297187,1713879491777,-500.0,0.00011469,2]
[323297188,1713879491800,-539.45,0.00011469,2]
[323297189,1713879491824,-500.0,0.00011469,2]
[323297190,1713879491849,-500.0,0.00011469,2]
[323297191,1713879491874,-500.0,0.00011469,2]
[323297192,1713879491897,-500.0,0.00011469,2]
[323297193,1713879491921,-500.0,0.00011469,2]
[323297194,1713879491947,-733.66,0.00011469,2]
[323297195,1713879491969,-500.0,0.00011469,2]
[323297196,1713879491993,-500.0,0.00011469,2]
[323297197,1713879492018,-2527.54,0.00011469,2]
[323297198,1713879492042,-500.0,0.00011469,2]
[323297199,1713879492069,-1579.66,0.00011469,2]
[323297200,1713879492093,-500.0,0.00011469,2]
[323297201,1713879492119,-500.0,0.00011469,2]
[323297202,1713879492143,-500.0,0.00011469,2]
[323297203,1713879492166,-500.0,0.00011469,2]
[323297204,1713879492189,-500.0,0.00011469,2]
[323297205,1713879492215,-1391.5,0.00011469,2]
[323297206,1713879492239,-500.0,0.00011469,2]
[323297207,1713879492263,-1465.42,0.00011469,2]
[323297208,1713879492287,-315.76709249,0.00011469,2]
[323297209,1713879522319,-184.23290751,0.00011469,2]
[323297210,1713879522347,-500.0,0.00011469,2]
[323297211,1713879522373,-1000.0,0.00011469,2]
[323297212,1713879522398,-500.0,0.00011469,2]
[323297213,1713879522423,-619.21,0.00011469,2]
[323297214,1713879522448,-506.8,0.00011469,2]
[323297215,1713879522474,-500.0,0.00011469,2]
[323297216,1713879522499,-500.0,0.00011469,2]
[323297217,1713879522523,-500.0,0.00011469,2]
[323297218,1713879522550,-189.75709249,0.00011469,2]
[323297219,1713879565822,504.21,9.195e-05,2]
[323297221,1713879612960,301.48,0.00011039,2]
[323297222,1713879621095,-161.51762488,0.00011248,2]
[323297223,1713879621125,-438.48237512,0.00011249,2]
[323297224,1713879688987,163.98,0.00010976,2]
[323297225,1713879700356,1207.6,0.00010976,2]
[323297226,1713879777568,156.33,0.00011049,2]
[323297227,1713879872598,-1060.80176792,0.00011247,2]
[323297228,1713879872629,-16110.64156882,0.00011248,2]
[323297229,1713879872659,-478.61,0.0001125,2]
[323297311,1713880091771,758.81,0.00010977,2]
[323297312,1713880118794,478.99,9.072e-05,2]
[323297313,1713880223122,804.73,0.00011027,2]
[323297326,1713880232673,-478.99,0.00011336,2]
[323297327,1713880232684,-156.33,0.00011337,2]
[323297328,1713880232694,-150.0,0.00011467,2]
[323297329,1713880232704,-300.0,0.00011467,2]
[323297330,1713880232714,-14298.06921782,0.00011468,2]
[323297331,1713880232729,-2952.77,0.00011468,2]
[323297332,1713880232750,-367.41417577,0.00011468,2]
[323297333,1713880232785,-6837.8,0.00011468,2]
[323297334,1713880232798,-14349.999995,0.00011468,2]
[323297335,1713880232814,-2967.23207388,0.00011468,2]
[323297336,1713880232828,-6662.3,0.00011468,2]
[323297358,1713880237909,-3384.60876067,0.00011468,2]
[323297359,1713880237919,-310.24290751,0.00011469,2]
[323297361,1713880237929,-500.0,0.00011469,2]
[323297363,1713880237938,-500.0,0.00011469,2]
[323297365,1713880237974,-458.78935671,0.00011469,2]
[323297366,1713880237984,-500.0,0.00011469,2]
[323297368,1713880237993,-500.0,0.00011469,2]
[323297370,1713880238002,-500.0,0.00011469,2]
[323297372,1713880238011,-500.0,0.00011469,2]
[323297374,1713880238021,-214.62228073,0.00011469,2]
[323297376,1713880238030,-690.93,0.00011469,2]
[323297378,1713880238040,-500.0,0.00011469,2]
[323297380,1713880238050,-500.0,0.00011469,2]
[323297382,1713880238062,-500.0,0.00011469,2]
[323297384,1713880238072,-660.4,0.00011469,2]
[323297386,1713880238080,-500.0,0.00011469,2]
[323297388,1713880238090,-500.0,0.00011469,2]
[323297390,1713880238099,-500.0,0.00011469,2]
[323297391,1713880238108,-500.0,0.00011469,2]
[323297392,1713880238118,-500.0,0.00011469,2]
[323297393,1713880238127,-500.0,0.00011469,2]
[323297394,1713880238136,-500.0,0.00011469,2]
[323297395,1713880238146,-500.0,0.00011469,2]
[323297396,1713880238155,-500.0,0.00011469,2]
[323297397,1713880238164,-500.0,0.00011469,2]
[323297398,1713880238173,-500.0,0.00011469,2]
[323297399,1713880238183,-500.0,0.00011469,2]
[323297400,1713880238192,-500.0,0.00011469,2]
[323297401,1713880238202,-500.0,0.00011469,2]
[323297402,1713880238211,-1228.86,0.00011469,2]
[323297403,1713880238220,-500.0,0.00011469,2]
[323297404,1713880238230,-500.0,0.00011469,2]
[323297405,1713880238239,-500.0,0.00011469,2]
[323297406,1713880238249,-500.0,0.00011469,2]
[323297407,1713880238258,-681.61,0.00011469,2]
[323297408,1713880238268,-763.78,0.00011469,2]
[323297409,1713880238277,-500.0,0.00011469,2]
[323297410,1713880238288,-500.0,0.00011469,2]
[323297411,1713880238300,-500.0,0.00011469,2]
[323297412,1713880238313,-500.0,0.00011469,2]
[323297413,1713880238323,-719.87,0.00011469,2]
[323297415,1713880238332,-500.0,0.00011469,2]
[323297417,1713880238341,-1054.5,0.00011469,2]
[323297419,1713880238350,-891.52,0.00011469,2]
[323297421,1713880238359,-527.79,0.00011469,2]
[323297423,1713880238369,-500.0,0.00011469,2]
[323297425,1713880238379,-500.0,0.00011469,2]
[323297427,1713880238389,-757.49,0.00011469,2]
[323297429,1713880238398,-223.56612064,0.00011469,2]
[323297432,1713880238418,-276.43387936,0.00011469,2]
[323297433,1713880238428,-500.0,0.00011469,2]
[323297434,1713880238438,-500.0,0.00011469,2]
[323297435,1713880238447,-500.0,0.00011469,2]
[323297436,1713880238456,-500.0,0.00011469,2]
[323297437,1713880238466,-544.17,0.00011469,2]
[323297438,1713880238475,-500.0,0.00011469,2]
[323297439,1713880238485,-500.0,0.00011469,2]
[323297440,1713880238494,-500.0,0.00011469,2]
[323297441,1713880238503,-500.0,0.00011469,2]
[323297442,1713880238513,-500.0,0.00011469,2]
[323297443,1713880238522,-500.0,0.00011469,2]
[323297444,1713880238531,-457.6823695,0.00011469,2]
[323297445,1713880238541,-500.0,0.00011469,2]
[323297446,1713880238550,-500.0,0.00011469,2]
[323297447,1713880238563,-500.0,0.00011469,2]
[323297448,1713880238572,-500.0,0.00011469,2]
[323297449,1713880238582,-500.0,0.00011469,2]
[323297450,1713880238591,-500.0,0.00011469,2]
[323297451,1713880238600,-500.0,0.00011469,2]
[323297452,1713880238610,-500.0,0.00011469,2]
[323297453,1713880238619,-500.0,0.00011469,2]
[323297454,1713880238628,-500.0,0.00011469,2]
[323297455,1713880238638,-500.0,0.00011469,2]
[323297456,1713880238647,-500.0,0.00011469,2]
[323297457,1713880238656,-500.0,0.00011469,2]
[323297458,1713880238666,-500.0,0.00011469,2]
[323297459,1713880238675,-1052.32,0.00011469,2]
[323297460,1713880238684,-500.0,0.00011469,2]
[323297461,1713880238694,-500.0,0.00011469,2]
[323297462,1713880238703,-500.0,0.00011469,2]
[323297463,1713880238713,-500.0,0.00011469,2]
[323297464,1713880238722,-500.0,0.00011469,2]
[323297465,1713880238731,-500.0,0.00011469,2]
[323297466,1713880238741,-500.0,0.00011469,2]
[323297467,1713880238750,-500.0,0.00011469,2]
[323297468,1713880238760,-500.0,0.00011469,2]
[323297469,1713880238770,-500.0,0.00011469,2]
[323297470,1713880238779,-500.0,0.00011469,2]
[323297471,1713880238788,-586.89,0.00011469,2]
[323297472,1713880238797,-500.0,0.00011469,2]
[323297473,1713880238806,-500.0,0.00011469,2]
[323297474,1713880238819,-500.0,0.00011469,2]
[323297475,1713880238829,-500.0,0.00011469,2]
[323297476,1713880238839,-500.0,0.00011469,2]
[323297477,1713880238848,-500.0,0.00011469,2]
[323297478,1713880238858,-500.0,0.00011469,2]
[323297479,1713880238867,-523.8,0.00011469,2]
[323297480,1713880238876,-361.62059334,0.00011469,2]
[323297481,1713880238895,-153.20940666,0.00011469,2]
[323297482,1713880238905,-500.0,0.00011469,2]
[323297483,1713880238914,-500.0,0.0001147,2]
[323297484,1713880238924,-500.0,0.0001147,2]
[323297485,1713880238933,-500.0,0.0001147,2]
[323297486,1713880238943,-545.53285625,0.0001147,2]
[323297487,1713880238951,-500.0,0.0001147,2]
[323297488,1713880238961,-500.0,0.0001147,2]
[323297489,1713880238970,-500.0,0.0001147,2]
[323297490,1713880238980,-500.0,0.0001147,2]
[323297491,1713880238989,-500.0,0.0001147,2]
[323297492,1713880238998,-682.9,0.0001147,2]
[323297493,1713880239008,-500.0,0.0001147,2]
[323297494,1713880239017,-576.38,0.0001147,2]
[323297495,1713880239027,-414.73288681,0.0001147,2]
[323297496,1713880239036,-500.0,0.0001147,2]
[323297497,1713880239046,-500.0,0.0001147,2]
[323297498,1713880239056,-737.78,0.0001147,2]
[323297499,1713880239068,-500.0,0.0001147,2]
[323297500,1713880239077,-500.0,0.0001147,2]
[323297501,1713880239087,-500.0,0.0001147,2]
[323297502,1713880239096,-630.94,0.0001147,2]
[323297503,1713880239106,-500.0,0.0001147,2]
[323297504,1713880239116,-500.0,0.0001147,2]
[323297505,1713880239125,-500.0,0.0001147,2]
[323297506,1713880239135,-500.0,0.0001147,2]
[323297507,1713880239144,-500.0,0.0001147,2]
[323297508,1713880239154,-500.0,0.0001147,2]
[323297509,1713880239163,-500.0,0.0001147,2]
[323297510,1713880239172,-500.0,0.0001147,2]
[323297511,1713880239182,-500.0,0.0001147,2]
[323297512,1713880239191,-500.0,0.0001147,2]
[323297513,1713880239200,-444.05092147,0.00011471,2]
[323297514,1713880239209,-155.14585425,0.00011471,2]
[323297515,1713880239218,-169.21327139,0.00011493,2]
[323297516,1713880239228,-1106.63224527,0.0001151,2]
[323297517,1713880239237,-307.0,0.000116,2]
[323297518,1713880239247,-4823.72,0.000116,2]
[323297519,1713880239257,-499.99,0.000116,2]
[323297520,1713880239266,-271.87,0.000116,2]
[323297521,1713880239277,-221.15,0.000116,2]
[323297522,1713880239286,-156.33,0.00011625,2]
[323297523,1713880239298,-358.9104,0.00011645,2]
[323297524,1713880239311,-242.70750869,0.0001174,2]
[323297525,1713880239324,-469.02070494,0.0001174,2]
[323297526,1713880239395,-106.86178637,0.0001174,2]
[323297527,1713880239405,-160.78911152,0.00011741,2]
[323297528,1713880239415,-1008.01722243,0.00011741,2]
[323297529,1713880239424,-500.0,0.00011741,2]
[323297530,1713880239433,-500.0,0.00011741,2]
[323297531,1713880239442,-500.0,0.00011741,2]
[323297532,1713880239452,-500.0,0.00011741,2]
[323297533,1713880239461,-500.0,0.00011741,2]
[323297534,1713880239470,-500.0,0.00011741,2]
[323297535,1713880239479,-500.0,0.00011741,2]
[323297536,1713880239488,-500.0,0.00011741,2]
[323297537,1713880239497,-500.0,0.00011741,2]
[323297538,1713880239506,-500.0,0.00011741,2]
[323297539,1713880239515,-500.0,0.00011741,2]
[323297540,1713880239525,-500.0,0.00011741,2]
[323297541,1713880239534,-530.23,0.00011741,2]
[323297542,1713880239544,-346.29635697,0.00011741,2]
[323297543,1713880239553,-500.0,0.00011741,2]
[323297544,1713880239567,-500.0,0.00011741,2]
[323297545,1713880239577,-500.0,0.00011741,2]
[323297546,1713880239586,-500.0,0.00011741,2]
[323297547,1713880239595,-445.82,0.00011741,2]
[323297548,1713880239605,-545.0,0.00011741,2]
[323297549,1713880239615,-500.0,0.00011741,2]
[323297550,1713880239624,-500.0,0.00011741,2]
[323297551,1713880239633,-391.06,0.00011741,2]
[323297552,1713880239643,-500.0,0.00011741,2]
[323297553,1713880239652,-173.24,0.00011741,2]
[323297554,1713880239660,-451.52,0.00011741,2]
[323297555,1713880239669,-500.0,0.00011741,2]
[323297556,1713880239678,-500.0,0.00011741,2]
[323297557,1713880239687,-500.0,0.00011741,2]
[323297558,1713880239697,-524.99,0.00011741,2]
[323297559,1713880239706,-500.0,0.00011741,2]
[323297560,1713880239716,-635.38180176,0.00011741,2]
[323297561,1713880239725,-500.0,0.00011741,2]
[323297562,1713880239735,-500.0,0.00011741,2]
[323297563,1713880239744,-292.45,0.00011741,2]
[323297564,1713880239754,-500.0,0.00011741,2]
[323297565,1713880239764,-500.0,0.00011741,2]
[323297566,1713880239774,-500.0,0.00011741,2]
[323297567,1713880239783,-7699.18107847,0.00011741,2]
[323297570,1713880239804,-9908.45892153,0.00011741,2]
[323297571,1713880239816,-500.0,0.00011741,2]
[323297572,1713880239825,-1682.4,0.00011741,2]
[323297573,1713880239835,-500.0,0.00011741,2]
[323297574,1713880239845,-500.0,0.00011741,2]
[323297575,1713880239853,-500.0,0.00011741,2]
[323297576,1713880239863,-1062.1,0.00011741,2]
[323297577,1713880239871,-500.0,0.00011741,2]
[323297578,1713880239880,-500.0,0.00011741,2]
[323297579,1713880239890,-500.0,0.00011741,2]
[323297580,1713880239899,-500.0,0.00011741,2]
[323297581,1713880239908,-500.0,0.00011741,2]
[323297582,1713880239917,-500.0,0.00011741,2]
[323297583,1713880239926,-500.0,0.00011741,2]
[323297584,1713880239935,-500.0,0.00011741,2]
[323297585,1713880239945,-500.0,0.00011741,2]
[323297586,1713880239963,-500.0,0.00011741,2]
[323297587,1713880239982,-500.0,0.00011741,2]
[323297588,1713880239991,-500.0,0.00011741,2]
[323297589,1713880240000,-1362.56,0.00011741,2]
[323297590,1713880240010,-500.0,0.00011741,2]
[323297591,1713880240019,-500.0,0.00011741,2]
[323297592,1713880240028,-722.21,0.00011741,2]
[323297593,1713880240037,-500.0,0.00011741,2]
[323297594,1713880240046,-500.0,0.00011741,2]
[323297595,1713880240056,-500.0,0.00011741,2]
[323297596,1713880240070,-500.0,0.00011741,2]
[323297597,1713880240079,-500.0,0.00011741,2]
[323297598,1713880240088,-2422.22,0.00011741,2]
[323297599,1713880240098,-921.3,0.00011741,2]
[323297600,1713880240107,-682.12,0.00011741,2]
[323297601,1713880240116,-751.15,0.00011741,2]
[323297602,1713880240125,-500.0,0.00011741,2]
[323297603,1713880240135,-500.0,0.00011741,2]
[323297604,1713880240144,-2443.87,0.00011741,2]
[323297605,1713880240153,-500.0,0.00011741,2]
[323297606,1713880240162,-500.0,0.00011741,2]
[323297607,1713880240171,-500.0,0.00011741,2]
[323297608,1713880240180,-605.67,0.00011741,2]
[323297609,1713880240190,-500.0,0.00011741,2]
[323297610,1713880240198,-500.0,0.00011741,2]
[323297611,1713880240208,-1513.84,0.00011741,2]
[323297612,1713880240217,-500.0,0.00011741,2]
[323297613,1713880240227,-500.0,0.00011741,2]
[323297614,1713880240236,-604.42,0.00011741,2]
[323297615,1713880240245,-500.0,0.00011741,2]
[323297616,1713880240254,-1779.52,0.00011741,2]
[323297617,1713880240264,-648.22,0.00011741,2]
[323297618,1713880240273,-8597.37,0.00011741,2]
[323297619,1713880240282,-500.0,0.00011741,2]
[323297620,1713880240291,-593.41,0.00011741,2]
[323297621,1713880240304,-1333.52,0.00011741,2]
[323297622,1713880240319,-500.0,0.00011741,2]
[323297623,1713880240328,-753.52,0.00011741,2]
[323297624,1713880240337,-4457.94,0.00011741,2]
[323297625,1713880240346,-1479.35,0.00011741,2]
[323297627,1713880240356,-500.0,0.00011741,2]
[323297629,1713880240365,-421.84,0.00011741,2]
[323297631,1713880240375,-500.0,0.00011741,2]
[323297633,1713880240384,-1167.64,0.00011741,2]
[323297635,1713880240394,-500.0,0.00011741,2]
[323297637,1713880240404,-500.0,0.00011741,2]
[323297639,1713880240414,-500.0,0.00011741,2]
[323297641,1713880240423,-1878.37,0.00011741,2]
[323297643,1713880240433,-560.52,0.00011741,2]
[323297645,1713880240442,-500.0,0.00011741,2]
[323297647,1713880240452,-500.0,0.00011741,2]
[323297649,1713880240461,-4298.11,0.00011741,2]
[323297651,1713880240471,-500.0,0.00011741,2]
[323297653,1713880240480,-749.69,0.00011741,2]
[323297655,1713880240490,-672.63,0.00011741,2]
[323297657,1713880240499,-718.51,0.00011741,2]
[323297658,1713880240508,-500.0,0.00011741,2]
[323297660,1713880240517,-500.0,0.00011741,2]
[323297662,1713880240526,-500.0,0.00011741,2]
[323297664,1713880240536,-500.0,0.00011741,2]
[323297666,1713880240545,-5588.27,0.00011741,2]
[323297668,1713880240554,-2097.24,0.00011741,2]
[323297670,1713880240568,-500.0,0.00011741,2]
[323297672,1713880240577,-27.07610185,0.00011741,2]
[323297683,1713880241231,-472.92389815,0.00011741,2]
[323297684,1713880241241,-500.0,0.00011741,2]
[323297685,1713880241250,-500.0,0.00011741,2]
[323297686,1713880241259,-500.0,0.00011741,2]
[323297687,1713880241267,-748.05144538,0.00011741,2]
[323297688,1713880241279,-299.8197336,0.00011741,2]
[323297689,1713880241291,-498.46882102,0.00011741,2]
[323297690,1713880241303,-474.5874284,0.00011741,2]
[323297691,1713880241318,-500.0,0.00011741,2]
[323297692,1713880241327,-500.0,0.00011741,2]
[323297693,1713880241337,-500.0,0.00011741,2]
[323297694,1713880241346,-453.14682231,0.00011741,2]
[323297695,1713880241355,-4.12193927,0.00011741,2]
[323297696,1713880241373,-940.98806073,0.00011741,2]
[323297697,1713880241383,-500.0,0.00011741,2]
[323297698,1713880241393,-500.0,0.00011741,2]
[323297699,1713880241402,-757.09,0.00011741,2]
[323297700,1713880241412,-525.69580926,0.00011741,2]
[323297701,1713880241423,-167.20419074,0.00011741,2]
[323297702,1713880241433,-500.0,0.00011741,2]
[323297703,1713880241444,-518.86,0.00011742,2]
[323297704,1713880241461,-500.0,0.00011742,2]
[323297705,1713880241471,-500.0,0.00011742,2]
[323297706,1713880241481,-500.0,0.00011742,2]
[323297707,1713880241490,-353.03580926,0.00011742,2]
[323297708,1713880241500,-212.86121048,0.00011742,2]
[323297709,1713880241509,-500.0,0.00011742,2]
[323297710,1713880241519,-1067.81,0.00011742,2]
[323297711,1713880241528,-500.0,0.00011742,2]
[323297712,1713880241538,-500.0,0.00011742,2]
[323297713,1713880241548,-500.0,0.00011742,2]
[323297714,1713880241557,-500.0,0.00011742,2]
[323297715,1713880241571,-21.113149,0.00011742,2]
[323297716,1713880241583,-500.176851,0.00011742,2]
[323297717,1713880241593,-500.0,0.00011742,2]
[323297718,1713880241602,-534.2,0.00011742,2]
[323297719,1713880241611,-742.47,0.00011742,2]
[323297720,1713880241621,-500.0,0.00011742,2]
[323297721,1713880241630,-500.0,0.00011742,2]
[323297722,1713880241640,-277.87648712,0.00011742,2]
[323297723,1713880241660,-417.84351288,0.00011742,2]
[323297724,1713880241669,-500.0,0.00011742,2]
[323297725,1713880241679,-500.0,0.00011742,2]
[323297726,1713880241688,-609.29,0.00011742,2]
[323297727,1713880241698,-92.02759712,0.00011742,2]
[323297728,1713880241709,-407.97240288,0.00011742,2]
[323297729,1713880241718,-587.19,0.00011742,2]
[323297730,1713880241727,-500.0,0.00011742,2]
[323297731,1713880241736,-163.21960404,0.00011742,2]
[323297732,1713880241748,-514.51039596,0.00011742,2]
[323297733,1713880241757,-500.0,0.00011742,2]
[323297734,1713880241766,-500.0,0.00011742,2]
[323297735,1713880241775,-500.0,0.00011742,2]
[323297736,1713880241784,-500.0,0.00011742,2]
[323297737,1713880241793,-500.0,0.00011742,2]
[323297738,1713880241803,-500.0,0.00011742,2]
[323297739,1713880241815,-500.0,0.00011742,2]
[323297740,1713880241825,-500.0,0.00011742,2]
[323297741,1713880241834,-500.0,0.00011742,2]
[323297742,1713880241844,-500.0,0.00011742,2]
[323297743,1713880241853,-500.0,0.00011742,2]
[323297744,1713880241862,-500.0,0.00011742,2]
[323297745,1713880241871,-694.39,0.00011742,2]
[323297746,1713880241880,-210.07226498,0.00011742,2]
[323297747,1713880241892,-289.92773502,0.00011742,2]
[323297748,1713880241902,-500.0,0.00011742,2]